[Event "Romanian Team Rapid Women 2022"]
[Site "Sebes"]
[Date "2022.12.03"]
[Round "2.3"]
[White "Ciolacu, Alessia-Mihaela"]
[Black "Hoanca, Alexia-Ioana"]
[Result "1-0"]
[ECO "A35"]
[WhiteElo "2097"]
[BlackElo "1644"]
[Annotator "TA"]
[PlyCount "111"]
[EventDate "2022.12.03"]
[EventType "rapid"]
[EventCountry "ROU"]
[SourceTitle "playchess.com"]
[Source "ChessBase"]
[SourceQuality "1"]
[TimeControl "900+10"]

{[%evp 19,111,9,18,-14,-36,-27,0,-17,0,-6,19,5,0,0,12,8,5,0,55,4,8,0,95,95,82,55,89,20,13,0,0,-6,0,-37,-35,-89,-53,-100,-53,-54,-58,-58,-9,-47,-18,-13,5,0,32,-14,0,0,109,112,105,100,129,129,194,193,464,457,574,574,573,541,559,539,632,630,682,529,883,879,793,797,883,883,1150,1150,1069,1053,1402,1306,29978,29979,29979,29980,29981,29982,29981,29981,29977,29977]} 1. Nf3 {[%emt 0:00:04]} Nf6 {[%emt 0:00:00]} 2. c4 {[%emt 0:00:02]} c5 {[%emt 0:00:01]} 3. Nc3 {[%emt 0:00:09]} Nc6 {[%emt 0:00:02]} 4. e3 {[%emt 0:00:04]} g6 {[%emt 0:00:03]} 5. d4 {[%emt 0:00:07]} cxd4 {[%emt 0:00:01]} 6. exd4 {[%emt 0:00:03]} d5 {[%emt 0:00:01]} 7. cxd5 {[%emt 0:00:05]} Nxd5 {[%emt 0:00:02]} 8. Qb3 {[%emt 0:00:06]} Nxc3 {[%emt 0:00:54]} 9. Bc4 {[%emt 0:00:08]} e6 {[%emt 0:00:33] is more profitable than 9...Nd5 at the moment.} 10. bxc3 {[%emt 0:00:18]} Bg7 {[%emt 0:00:21]} 11. O-O {[%emt 0:01:12] A35: Symmetrical English: 2 Nc3 Nc6 3 Nf3.} (11. Ba3 {is interesting.} Na5 12. Bb5+ Bd7 13. Qb2) 11... O-O {[%emt 0:00:28] [#]} 12. Qd1 $146 {[%emt 0:01:05]} ({Predecessor:} 12. Be2 b6 13. Bg5 Qc7 14. Rac1 Bb7 15. Rfd1 Na5 16. Qb1 Rac8 17. Bh4 Bd5 18. Ba6 Bb7 {0-1 (46) Pultinevicius,P (2512)-Xiong,J (2709) Chess.com INT 2020}) 12... Ne7 {[%emt 0:01:44]} 13. Bd3 {[%emt 0:02:30] The position is equal.} Bd7 {[%emt 0:00:20]} (13... Qc7 $5 {[%cal Rc7c3]}) 14. Re1 {[%emt 0:00:28]} Bc6 {[%emt 0:00:24]} (14... Rc8 $5 {[%cal Rc8c3]}) 15. Ne5 {[%emt 0:00:08]} Rc8 {[%emt 0:00:22]} 16. Rb1 {[%emt 0:01:02]} Qc7 {[%emt 0:03:19]} 17. Bf4 {[%emt 0:03:23][%cal Oe5g6]} Nd5 {[%emt 0:02:43][%csl LRc3,LRf4]} 18. Bd2 {[%emt 0:00:03]} Ne7 {[%emt 0:00:16]} (18... Nb6 $11) 19. Qc1 {[%emt 0:01:01]} (19. h4 $14) 19... Rfd8 {[%emt 0:01:15]} 20. Bf4 {[%emt 0:00:10][%cal Oe5f7]} Qa5 {[%emt 0:00:40]} (20... Nd5 $1 $11) 21. Bg5 $1 $16 {[%emt 0:02:23]} Re8 {[%emt 0:02:37] [#]} 22. Ng4 $1 {[%emt 0:00:39] Strongly threatening Bf6. White has more active pieces.} Kh8 {[%emt 0:01:58]} 23. Bf6 {[%emt 0:00:29]} ({White should play} 23. h4 $16) 23... Ng8 $1 $11 {[%emt 0:00:05]} 24. Re5 {[%emt 0:01:40]} (24. Bxg7+ {simplifies} Kxg7 25. Qb2 f6 26. c4) 24... Qc7 {[%emt 0:00:32]} 25. Bxg7+ {[%emt 0:00:02]} Kxg7 {[%emt 0:00:02]} 26. h4 {[%emt 0:00:45]} (26. Rc5 {is more complex.} b6 27. Rc4 Qd6 28. a4) 26... h5 {[%emt 0:00:11]} 27. Nh2 {[%emt 0:00:24]} (27. Ne3 $15) 27... Nf6 {[%emt 0:00:13]} (27... Qd8 {seems wilder.} 28. Qf4 Bd5 29. Rc1 Re7) 28. Qe1 {[%emt 0:00:29]} (28. Nf1 $15) 28... Bd5 {[%emt 0:00:15]} (28... Red8 $17) 29. c4 $15 {[%emt 0:00:10]} Bc6 {[%emt 0:00:11]} ({Of course not} 29... Bxc4 30. Rc5 Bxd3 31. Rxc7 Rxc7 32. Rc1 Rxc1 33. Qxc1 $11) 30. Qe3 {[%emt 0:00:11]} Qd7 {[%emt 0:00:12]} (30... Rcd8 $15) 31. Rd1 {[%emt 0:00:17]} Ba4 {[%emt 0:00:05]} 32. Rd2 {[%emt 0:00:04][%cal Og2g4]} Qc7 {[%emt 0:00:15] Inhibits g4.} 33. Be2 $40 {[%emt 0:00:07][%mdl 128] White has some attack.} Rh8 {[%emt 0:00:09]} 34. Qg5 {[%emt 0:00:11]} (34. Nf1 $14 {was preferrable.}) 34... Qd8 {[%emt 0:00:10]} 35. Nf1 {[%emt 0:00:07]} Nd7 {[%emt 0:00:07] [#]} (35... b5 $11 {keeps the balance.} 36. c5 Nd7) 36. Qxd8 $1 $16 {[%emt 0:00:04] White stays focused until the end.} Rhxd8 {[%emt 0:00:02]} 37. Ra5 {[%emt 0:00:02][%csl LRa4,LRa7]} Bc6 {[%emt 0:00:10]} 38. d5 {[%emt 0:00:15][%cal Oa5a7] Threatens to win with Rxa7!} exd5 {[%emt 0:00:02]} (38... b6 $16 39. Rxa7 (39. dxc6 bxa5 40. cxd7 Rc7 $16) 39... exd5) 39. cxd5 $18 {[%emt 0:00:02]} Nf6 $2 {[%emt 0:00:06]} (39... b6 {was worth a try.}) 40. dxc6 {[%emt 0:00:06]} bxc6 {[%emt 0:00:11]} 41. Rxd8 {[%emt 0:00:03]} Rxd8 {[%emt 0:00:01]} 42. Rxa7 {[%emt 0:00:04]} Nd5 {[%emt 0:00:03]} 43. Bc4 {[%emt 0:00:10]} Rb8 {[%emt 0:00:15]} 44. Ne3 {[%emt 0:00:11]} Rb1+ {[%emt 0:00:11]} 45. Kh2 {[%emt 0:00:01]} Nxe3 {[%emt 0:00:02]} 46. Rxf7+ {[%emt 0:00:07]} Kh6 {[%emt 0:00:02]} 47. fxe3 {[%emt 0:00:02][%cal Bf2e3,Be3e4,Be4e5,Be5e6,Be6e7][%mdl 4128] Endgame KRB-KR} Rc1 {[%emt 0:00:04]} 48. Bb3 {[%emt 0:00:15]} Rc3 {[%emt 0:00:07]} 49. e4 {[%emt 0:00:03] Hoping for e5.} Re3 {[%emt 0:00:06] Against e5} 50. Re7 {[%emt 0:00:10] aiming for e5.} Re2 {[%emt 0:00:05]} 51. e5 {[%emt 0:00:02] Black must now prevent e6.} c5 {[%emt 0:00:01]} 52. e6 {[%emt 0:00:03] White mates.} Re4 {[%emt 0:00:02]} 53. Rc7 {[%emt 0:00:27]} Rxh4+ {[%emt 0:00:09]} 54. Kg1 {[%emt 0:00:02]} Re4 {[%emt 0:00:03]} 55. e7 {[%emt 0:00:03]} h4 {[%emt 0:00:12]} 56. Bf7 {[%emt 0:00:10] Weighted Error Value: White=0.15 (very precise) /Black=0.39} 1-0

[Event "Romanian Team Rapid Women 2022"]
[Site "Sebes"]
[Date "2022.12.03"]
[Round "2.4"]
[White "Peptan, Corina-Isabela"]
[Black "Voicu-Jagodzinsky, Carmen"]
[Result "1/2-1/2"]
[ECO "D40"]
[WhiteElo "2351"]
[BlackElo "2300"]
[Annotator "TA"]
[PlyCount "94"]
[EventDate "2022.12.03"]
[EventType "rapid"]
[EventCountry "ROU"]
[SourceTitle "playchess.com"]
[Source "ChessBase"]
[SourceQuality "1"]
[TimeControl "900+10"]

{[%evp 15,94,12,25,18,26,37,19,20,58,56,61,61,60,58,64,54,75,60,59,68,56,23,32,40,29,29,57,31,59,33,84,77,207,204,233,200,195,193,194,183,202,197,229,173,370,372,359,199,222,218,225,210,238,192,229,229,252,246,268,265,287,240,242,225,229,187,181,77,89,32,34,0,0,0,0,0,0,0,0,0,0]} 1. d4 {[%emt 0:00:03]} Nf6 {[%emt 0:00:00]} 2. c4 {[%emt 0:00:01]} c5 {[%emt 0:00:01]} 3. Nf3 {[%emt 0:00:06]} e6 {[%emt 0:00:03]} 4. Nc3 {[%emt 0:00:03]} cxd4 {[%emt 0:01:16]} 5. Nxd4 {[%emt 0:00:01]} d5 {[%emt 0:00:42]} 6. e3 {[%emt 0:00:21]} Be7 {[%emt 0:00:35]} 7. cxd5 {[%emt 0:00:35]} exd5 {[%emt 0:00:39]} 8. Bd3 {[%emt 0:00:35]} O-O {[%emt 0:00:07]} 9. O-O {[%emt 0:00:03] D40: Queen's Gambit Declined: Semi-Tarrasch with 5 e3.} Nc6 {[%emt 0:00:15]} 10. Nce2 {[%emt 0:00:24][%cal Bc3e2,Be2f4,Bf4d3][%mdl 32] [#]} Re8 $146 {[%emt 0:01:19]} ({Predecessor:} 10... a6 11. Bd2 Bc5 12. Rc1 Qd6 13. Nxc6 bxc6 14. Ng3 Ba7 15. Qa4 c5 16. Bc3 Bd7 {0-1 (53) Gonzalez Tascon,L-Hadad Diaz,A (2038) Caracas 2012}) 11. b3 {[%emt 0:00:18]} Ne5 {[%emt 0:01:04]} 12. Bb2 {[%emt 0:00:49]} Bf8 {[%emt 0:02:24]} 13. Rc1 {[%emt 0:00:11]} a6 {[%emt 0:00:04]} 14. h3 {[%emt 0:01:12]} Ne4 {[%emt 0:01:43]} 15. Nf4 {[%emt 0:00:39]} Qd6 {[%emt 0:02:32]} 16. Bb1 {[%emt 0:03:31]} Bd7 {[%emt 0:00:06]} 17. Nde2 {[%emt 0:02:38] Strongly threatening Bxe4.} Bc6 {[%emt 0:00:19]} 18. Nd3 {[%emt 0:01:30]} Ng6 {[%emt 0:00:12]} (18... Nxd3 {simplifies} 19. Bxd3 Qh6 20. Nf4 Nf6) 19. Nd4 {[%emt 0:00:41]} Bd7 {[%emt 0:00:01]} 20. Qh5 {[%emt 0:01:23]} Rad8 {[%emt 0:00:23]} 21. Rfd1 {[%emt 0:00:10]} Nf6 {[%emt 0:01:22]} 22. Qe2 {[%emt 0:00:04]} Nh4 {[%emt 0:00:20]} (22... Ne4 $14) 23. Nf4 {[%emt 0:00:58]} g5 {[%emt 0:00:56]} (23... Be7 $16 {was necessary.}) 24. Nh5 $18 {[%emt 0:00:12]} Be7 {[%emt 0:01:52]} 25. Nxf6+ {[%emt 0:00:45]} Bxf6 {[%emt 0:00:10]} 26. Qh5 $1 {[%emt 0:00:09]} Ng6 {[%emt 0:00:11]} 27. Rd2 {[%emt 0:00:36]} Rc8 {[%emt 0:00:28]} 28. Rcd1 {[%emt 0:00:09]} Qf8 {[%emt 0:00:20]} 29. Nf5 {[%emt 0:01:05] Inhibits Qg7.} Bxf5 $2 {[%emt 0:00:18]} (29... Bxb2 {keeps fighting.} 30. Rxb2 f6) 30. Bxf5 {[%emt 0:00:14]} (30. Bxf6 Bxb1 31. Rxb1 Rc6 $18) 30... Bxb2 {[%emt 0:00:02]} 31. Rxb2 {[%emt 0:00:09]} (31. Bxc8 $142 Bc3 32. Bd7 (32. Bxb7 Bxd2 33. Bc6 Rc8 $11) (32. Rxd5 Rxc8 33. Qxg5 Qb4 $16)) 31... Rcd8 {[%emt 0:00:20]} 32. Qxg5 {[%emt 0:00:03]} Re5 {[%emt 0:00:02]} 33. Qg4 {[%emt 0:00:27]} Qe7 {[%emt 0:00:05]} 34. Bb1 {[%emt 0:00:12]} Kh8 {[%emt 0:00:09]} 35. Qd4 {[%emt 0:00:43]} f6 36. Rbd2 {[%emt 0:00:00]} Qg7 {[%emt 0:00:06]} 37. Qb6 {[%emt 0:00:00]} Rg8 {[%emt 0:00:06]} 38. f4 {[%emt 0:00:05]} (38. Rxd5 $2 Nf4 $1 $19 {[%mdl 512]}) 38... Re7 {[%emt 0:00:42]} 39. Bxg6 {[%emt 0:00:16]} (39. Rxd5 {[#]} Nxf4 $1 {[%mdl 512]} 40. g4 Re6 $17) 39... Qxg6 {[%emt 0:00:05]} 40. Qd4 {[%emt 0:00:13]} (40. Rxd5 $2 Qxg2#) 40... Re4 {[%emt 0:00:01]} 41. Qxd5 {[%emt 0:00:02]} (41. Qc3 $18) 41... Rxe3 $16 {[%emt 0:00:01]} 42. Kh1 {[%emt 0:00:10]} ({Much worse is} 42. Qxb7 $6 Qg3 43. Rf2 (43. Qxa6 Re1+ 44. Rxe1 Qxe1+ 45. Kh2 Qxd2 $11) 43... Qh4 $11) (42. Kf1 $16) 42... Qg3 $1 $14 {[%emt 0:00:04]} 43. Qd4 {[%emt 0:00:19]} (43. Rd3 {simplifies} Rxd3 44. Rxd3 Qxf4 45. Rd1) 43... Re1+ {[%emt 0:00:09] The position is equal.} 44. Rxe1 {[%emt 0:00:01]} Qxe1+ {[%emt 0:00:01]} 45. Kh2 {[%emt 0:00:02]} Qg3+ {[%emt 0:00:01]} 46. Kh1 {[%emt 0:00:13]} Qe1+ {[%emt 0:00:03]} 47. Kh2 {[%emt 0:00:02]} Qg3+ {[%emt 0:00:03] Black escapes into a draw.   Weighted Error Value: White=0.20 (precise) /Black=0.22 (precise)} 1/2-1/2

[Event "Romanian Team Rapid Women 2022"]
[Site "Sebes"]
[Date "2022.12.03"]
[Round "2.5"]
[White "Visanescu, Daria-Ioana"]
[Black "Ionescu, Irina"]
[Result "0-1"]
[ECO "C54"]
[WhiteElo "2117"]
[BlackElo "2119"]
[Annotator "TA"]
[PlyCount "53"]
[EventDate "2022.12.03"]
[EventType "rapid"]
[EventCountry "ROU"]
[SourceTitle "playchess.com"]
[Source "ChessBase"]
[SourceQuality "1"]
[TimeControl "900+10"]

{[%evp 10,53,18,6,4,0,0,6,4,-16,0,-19,-20,-46,-34,-66,-11,-7,-7,-9,-17,-12,-9,-12,-13,-20,-16,-20,-21,-14,-14,-14,-8,-76,-79,-73,-68,-120,-120,-152,-134,-624,-609,-768,-391,-363]} 1. e4 {[%emt 0:00:03]} e5 {[%emt 0:00:07]} 2. Nf3 {[%emt 0:00:05]} Nc6 {[%emt 0:00:07]} 3. Bc4 {[%emt 0:00:10]} Bc5 {[%emt 0:00:03]} 4. c3 {[%emt 0:00:12]} Nf6 {[%emt 0:00:03]} 5. d3 {[%emt 0:00:17]} d6 {[%emt 0:00:14]} 6. Bb3 {[%emt 0:00:03]} a5 {[%emt 0:00:05] C54: Giuoco Piano: 4 c3 Nf6, main lines with 5 d4 and 5 d3.} 7. a4 {[%emt 0:00:28] 7.h3 is the modern continuation.} h6 {[%emt 0:00:41]} 8. Nbd2 {[%emt 0:00:06]} O-O {[%emt 0:00:40] The position is equal.} 9. Nf1 {[%emt 0:00:12]} Be6 {[%emt 0:00:20]} 10. Bc2 {[%emt 0:00:13]} d5 {[%emt 0:00:34]} 11. Qe2 {[%emt 0:00:16]} Ng4 {[%emt 0:04:19]} 12. Ne3 {[%emt 0:01:32] [#]} dxe4 $146 {[%emt 0:02:24]} (12... Nxe3 $15 13. Bxe3 d4) ({Predecessor:} 12... Nxe3 13. Bxe3 d4 14. Bd2 Qe7 15. O-O Bb6 16. h3 f5 17. exf5 Bxf5 18. Rfe1 Rae8 {0-1 (25) Tissir,M (2375)-Lysyj,I (2603) Chess.com INT 2021}) 13. dxe4 $11 {[%emt 0:00:11]} Nxe3 {[%emt 0:00:09]} 14. Bxe3 {[%emt 0:00:19]} Bxe3 {[%emt 0:00:05]} 15. Qxe3 {[%emt 0:00:47]} Qe7 {[%emt 0:00:51]} 16. O-O {[%emt 0:00:10]} Rad8 {[%emt 0:00:30]} 17. Rad1 {[%emt 0:00:33]} Bg4 {[%emt 0:00:15]} 18. Rd5 {[%emt 0:01:38]} Qf6 {[%emt 0:00:52]} 19. Nd2 {[%emt 0:00:40]} Be6 {[%emt 0:00:09]} 20. Rxd8 {[%emt 0:01:29]} Rxd8 {[%emt 0:00:02]} 21. f4 {[%emt 0:02:07]} (21. Qe2 $11 {remains equal.}) 21... exf4 $17 {[%emt 0:00:25]} 22. Rxf4 {[%emt 0:00:03]} Qe7 {[%emt 0:00:33]} 23. e5 {[%emt 0:01:22] [#]} (23. Nb3 $15) 23... Nxe5 $1 {[%emt 0:01:10][%mdl 512]} 24. Qxe5 {[%emt 0:01:19] Threatens to win with Nb3.} (24. Nb3 Bxb3) 24... Rxd2 {[%emt 0:00:04]} 25. Qe4 {[%emt 0:04:38][%mdl 8192]} (25. Rf2 $17 Qd8 26. Qe1 Rxf2 27. Qxf2) 25... Qc5+ $19 {[%emt 0:00:29]} 26. Kh1 {[%emt 0:00:22]} Qd5 {[%emt 0:01:27][%cal Od2d1] Prevents Bd3. ( -> ...Rd1+!). Active counter play!} 27. Qh7+ {[%emt 0:00:25] Weighted Error Value: White=0.67/Black=0.29 (precise)} 0-1

[Event "Romanian Team Rapid Women 2022"]
[Site "Sebes"]
[Date "2022.12.03"]
[Round "2.6"]
[White "Schiopu, Andreea-Alexandra"]
[Black "Bucur, Denisa-Andreea"]
[Result "1/2-1/2"]
[ECO "D02"]
[WhiteElo "1716"]
[BlackElo "1953"]
[Annotator "TA"]
[PlyCount "38"]
[EventDate "2022.12.03"]
[EventType "rapid"]
[EventCountry "ROU"]
[SourceTitle "playchess.com"]
[Source "ChessBase"]
[SourceQuality "1"]
[TimeControl "900+10"]

{[%evp 11,38,0,20,4,4,0,20,-6,-6,-9,58,49,72,69,108,108,107,79,116,81,76,78,115,101,101,108,114,86,87]} 1. d4 {[%emt 0:00:03]} Nf6 {[%emt 0:00:04]} 2. Nf3 {[%emt 0:00:02]} e6 {[%emt 0:00:06]} 3. Bf4 {[%emt 0:00:03]} d5 {[%emt 0:00:17]} 4. e3 {[%emt 0:00:17]} c5 {[%emt 0:00:08]} 5. c3 {[%emt 0:00:01]} Nc6 {[%emt 0:00:03]} 6. Nbd2 {[%emt 0:00:25]} cxd4 {[%emt 0:01:30]} 7. cxd4 {[%emt 0:00:50] D02: 1 d4 d5 2 Nf3 sidelines, including 2...Nf6 3 g3 and 2...Nf6 3 Bf4.} Be7 {[%emt 0:00:42] Recently 7...Nh5 got a lot of attention.} 8. h3 {[%emt 0:01:05]} O-O {[%emt 0:00:08]} 9. Be2 {[%emt 0:00:16] [#] The position is equal.} Qb6 $146 {[%emt 0:00:42]} ({Predecessor:} 9... Bd6 10. Bxd6 Qxd6 11. O-O Bd7 12. Rc1 Rfc8 13. Bb5 Ne7 14. Bd3 Qb6 15. Qb3 Nc6 {0-1 (56) Ziegenfuss,A (2111)-Schulze,L (2160) Willingen 2019}) 10. Qb3 {[%emt 0:00:28]} Bb4 {[%emt 0:01:17]} (10... Qxb3 $11 11. Nxb3 (11. axb3 Bd7 $11) 11... Bd7) 11. O-O {[%emt 0:01:12]} (11. a3 $5 {[%cal Ra3b4]} Ba5 12. O-O $14) 11... Qa5 {[%emt 0:00:20]} 12. Rfd1 {[%emt 0:00:46]} Bd7 {[%emt 0:02:58]} 13. a3 {[%emt 0:03:54] White is better.} Bxd2 {[%emt 0:00:40]} 14. Rxd2 {[%emt 0:00:09]} (14. Nxd2 {simplifies} Qb6 15. Qxb6 axb6 16. Bc7) 14... Nd8 {[%emt 0:04:35]} 15. Qb4 {[%emt 0:02:19]} (15. a4 {simplifies} Qb6 16. Rd3 Qxb3 17. Rxb3 Rc8 18. Ne5) 15... Qa4 {[%emt 0:02:37]} 16. b3 {[%emt 0:01:15]} Qc6 {[%emt 0:00:12]} 17. Ne5 {[%emt 0:00:46]} Qc8 {[%emt 0:00:02]} 18. Rdd1 {[%emt 0:00:34] White is much more active.} Nc6 {[%emt 0:00:18]} 19. Nxc6 {[%emt 0:00:31]} Bxc6 {[%emt 0:00:03] Weighted Error Value: White=0.12 (very precise) /Black=0.22 (precise)} 1/2-1/2

[Event "Romanian Team Rapid Women 2022"]
[Site "Sebes"]
[Date "2022.12.03"]
[Round "3.1"]
[White "Voicu-Jagodzinsky, Carmen"]
[Black "Bulmaga, Irina"]
[Result "0-1"]
[ECO "E17"]
[WhiteElo "2300"]
[BlackElo "2426"]
[Annotator "TA"]
[PlyCount "92"]
[EventDate "2022.12.03"]
[EventType "rapid"]
[EventCountry "ROU"]
[SourceTitle "playchess.com"]
[Source "ChessBase"]
[SourceQuality "1"]
[TimeControl "900+10"]

{[%evp 18,92,3,8,0,-12,30,-4,-9,-22,0,0,0,0,0,0,0,-23,-16,-45,-27,-200,-206,-347,-360,-364,-358,-445,-470,-479,-476,-471,-470,-516,-506,-588,-577,-520,-419,-390,-397,-370,-356,-586,-595,-579,-581,-581,-532,-575,-580,-580,-580,-580,-580,-589,-578,-567,-562,-574,-567,-641,-620,-646,-556,-983,-962,-949,-928,-1743,-1605,-29972,-29974,-29969,-12819,-29978,-29979]} 1. Nf3 {[%emt 0:00:03]} Nf6 {[%emt 0:00:02]} 2. c4 {[%emt 0:00:01]} e6 {[%emt 0:00:02]} 3. g3 {[%emt 0:00:16]} d5 {[%emt 0:00:02]} 4. b3 {[%emt 0:00:02]} Be7 {[%emt 0:00:10]} 5. Bb2 {[%emt 0:00:02]} b6 {[%emt 0:00:09]} 6. Bg2 {[%emt 0:00:02]} Bb7 {[%emt 0:00:01]} 7. O-O {[%emt 0:00:02]} O-O {[%emt 0:00:04]} 8. d4 {[%emt 0:00:41]} Nbd7 {[%emt 0:00:38]} 9. Nbd2 {[%emt 0:01:06]} c5 {[%emt 0:00:08]} 10. cxd5 {[%emt 0:00:25]} Bxd5 {[%emt 0:00:05] E17: Queen's Indian: 4 g3 Bb7 5 Bg2 Be7.} 11. e3 {[%emt 0:03:55]} cxd4 {[%emt 0:00:39] [#]} 12. Bxd4 $146 {[%emt 0:00:32]} (12. Nxd4 {simplifies} Bxg2 13. Kxg2 Bc5 14. Qe2) ({Predecessor:} 12. Nxd4 Rc8 13. Rc1 Bxg2 14. Kxg2 Nc5 15. Qe2 Qd5+ 16. Kg1 Rfd8 17. Rfd1 Qb7 18. N2f3 {½-½ (41) Trebbin,W (1968)-Plesnik,M (1901) Prague 2013}) 12... Qc7 {[%emt 0:02:00] The position is equal.} 13. Qe2 {[%emt 0:00:49]} (13. Re1 {looks sharper.} Rac8 14. Rc1 Qb8 15. Qe2) 13... Qb7 {[%emt 0:00:04] Prevents e4.} 14. Rfe1 {[%emt 0:01:26]} Ne4 {[%emt 0:00:09]} 15. Nxe4 {[%emt 0:00:21]} Bxe4 {[%emt 0:00:02]} 16. Red1 {[%emt 0:01:29]} Bf6 {[%emt 0:00:21]} 17. Bxf6 {[%emt 0:00:57]} Nxf6 {[%emt 0:00:03]} 18. Rd4 {[%emt 0:00:39]} Rac8 {[%emt 0:00:37][%cal Oe6e5]} 19. Rad1 $2 {[%emt 0:00:45] [#] Loses the game.} (19. Ne1 $11 {and White is okay.}) 19... Nd5 $1 $19 {[%emt 0:01:31] White must now prevent ...Nc3.} 20. Rxd5 {[%emt 0:04:08]} ({Don't play} 20. Rxe4 Nc3 21. Qe1 Nxd1) (20. Qe1 $142 Nc3 21. Rxe4 (21. Rd7 $2 Qa8 $19) 21... Qxe4 22. Nd4) 20... Bxd5 {[%emt 0:00:07]} 21. h4 {[%emt 0:00:09]} h6 {[%emt 0:00:03]} 22. h5 {[%emt 0:00:01]} Be4 {[%emt 0:00:11]} 23. Nh4 {[%emt 0:00:27]} Bxg2 {[%emt 0:00:09]} 24. Nxg2 {[%emt 0:00:01]} Rfd8 {[%emt 0:00:05]} 25. Rf1 {[%emt 0:00:19]} Qe4 {[%emt 0:00:14]} 26. Nf4 {[%emt 0:00:03]} e5 {[%emt 0:00:19]} 27. Ng2 {[%emt 0:00:02]} Qd3 {[%emt 0:00:13]} 28. Qf3 {[%emt 0:00:09]} Rc2 {[%emt 0:01:32][%cal Bc8c2,Bc2d2,Bd2d1][%mdl 32]} 29. Nh4 {[%emt 0:00:41]} Rd2 {[%emt 0:01:32]} (29... Rxa2 $2 {too greedy.} 30. Nf5 Kh7 31. Qg4 $19) 30. Nf5 $2 {[%emt 0:00:07]} (30. Kg2 {was worth a try.}) 30... Rd1 {[%emt 0:00:33]} ({Don't take} 30... Rxa2 31. Qg4 $18) 31. Ne7+ {[%emt 0:00:20]} Kh8 {[%emt 0:00:17]} 32. Rxd1 {[%emt 0:00:13]} Qxd1+ {[%emt 0:00:02]} 33. Kg2 {[%emt 0:00:04]} Qxf3+ {[%emt 0:00:06]} 34. Kxf3 {[%emt 0:00:01][%mdl 4096] Endgame KR-KN} Rd2 {[%emt 0:00:09]} 35. a4 {[%emt 0:00:06]} Rb2 {[%emt 0:00:17]} 36. Nc6 {[%emt 0:00:02]} Rxb3 {[%emt 0:00:24]} 37. Nxa7 {[%emt 0:00:01]} Rb4 {[%emt 0:00:08]} 38. Nc8 {[%emt 0:00:37]} g6 {[%emt 0:00:41]} 39. hxg6 {[%emt 0:00:02]} fxg6 {[%emt 0:00:01][%cal Bf7g6,Bg6g5][%mdl 32]} 40. Ne7 {[%emt 0:00:11]} e4+ {[%emt 0:00:59]} 41. Kf4 {[%emt 0:00:04]} g5+ {[%emt 0:00:02]} 42. Kf5 {[%emt 0:00:03]} Rxa4 {[%emt 0:00:05]} 43. Kf6 {[%emt 0:00:43]} b5 {[%emt 0:00:11] [#] aiming for ...b4.} 44. Ng6+ {[%emt 0:00:10]} Kh7 {[%emt 0:00:05]} 45. Nf8+ {[%emt 0:00:03]} Kg8 {[%emt 0:00:02]} 46. Ne6 {[%emt 0:00:05]} Ra6 {[%emt 0:00:03] Weighted Error Value: White=0.79/Black=0.06 (flawless)} 0-1